bitfinex/quotes_SOLUSD_20260226
["timestamp","ask_amount","ask_price","bid_price","bid_amount"]
[1772119716294,1.3990628,85.849,85.82,1e-08]
[1772119717175,1.3990628,85.829,85.79,10.02581922]
[1772119717380,1.3990628,85.829,85.8,10.02581922]
[1772119717586,10.02581922,85.84,85.8,10.02581922]
[1772119717772,40.76973254,85.848,85.792,0.04167756]
[1772119717773,1.39258757,85.843,85.792,0.04167756]
[1772119717976,1.39258757,85.839,85.8,10.02581922]
[1772119718193,1.39258757,85.839,85.79,10.02581922]
[1772119718496,1.39258757,85.839,85.8,10.02581922]
[1772119719000,1.39258757,85.829,85.79,10.02581922]
[1772119719195,1.39258757,85.839,85.8,10.02581922]
[1772119719579,10.02581922,85.85,85.81,10.02581922]
[1772119719781,10.02581922,85.85,85.791,0.04272194]
[1772119719993,3.69383402,85.869,85.81,10.02581922]
[1772119720196,6.09067084,85.917,85.81,10.02581922]
[1772119720386,10.02581922,85.85,85.81,10.02581922]
[1772119720588,10.02581922,85.84,85.8,10.02581922]
[1772119720780,10.02581922,85.84,85.79,10.02581922]
[1772119721303,10.02581922,85.84,85.8,10.02581922]
[1772119721503,1.39258757,85.839,85.8,10.02581922]
[1772119722400,10.02581922,85.85,85.81,10.02581922]
[1772119722580,1.39258757,85.849,85.81,10.02581922]
[1772119722776,1.39258757,85.829,85.791,11.65623433]
[1772119722977,1.39258757,85.819,85.78,10.02581922]
[1772119723201,1.39258757,85.809,85.771,1.39401682]
[1772119723400,11.65256706,85.818,85.78,10.02581922]
[1772119723613,10.02581922,85.8,85.763,11.65997593]
[1772119723904,1.39258757,85.799,85.761,11.66031179]
[1772119724208,11.65256706,85.818,85.78,10.02581922]
[1772119724499,1.39258757,85.817,85.78,10.02581922]
[1772119724729,1.39258757,85.809,85.76,1.39401682]
[1772119725008,1.39258757,85.799,85.76,10.02581922]
[1772119725393,13.0478709,85.798,85.761,11.66031179]
[1772119725606,10.02581922,85.81,85.77,10.02581922]
[1772119725793,21.67955529,85.81,85.771,1.39401682]
[1772119725993,11.65373607,85.81,85.78,10.02581922]
[1772119726200,11.65373607,85.81,85.771,1.39401682]
[1772119726397,1.39258757,85.799,85.752,36.42910862]
[1772119726596,1.39258757,85.799,85.76,10.02581922]
[1772119727412,1.39258757,85.793,85.76,10.02581922]
[1772119727710,1.39258757,85.793,85.753,1.39401682]
[1772119727913,1.39258757,85.793,85.752,36.42910862]
[1772119727914,10.02581922,85.78,85.752,24.76768914]
[1772119728084,1.39258757,85.779,85.752,24.76768914]
[1772119728924,1.39258757,85.797,85.761,1.39401682]
[1772119729143,10.02581922,85.8,85.753,11.6613996]
[1772119729144,1.39258757,85.808,85.771,1.39401682]
[1772119729329,1.39258757,85.799,85.76,10.02581922]
[1772119729940,1.39258757,85.789,85.752,24.76768914]
[1772119731342,1.39258757,85.787,85.752,24.76768914]
[1772119731842,3.69383402,85.814,85.752,24.76768914]
[1772119731843,1.39258757,85.797,85.76,10.02581922]
[1772119732045,11.65528333,85.798,85.77,10.02581922]
[1772119732269,1.39258757,85.808,85.78,10.02581922]
[1772119732270,11.65418701,85.807,85.78,10.02581922]
[1772119732857,13.0454262,85.816,85.79,10.02581922]
[1772119733349,1.39258757,85.807,85.77,10.02581922]
[1772119733555,11.65392504,85.808,85.78,10.02581922]
[1772119734061,1.39258757,85.816,85.78,10.02581922]
[1772119734274,13.04549453,85.816,85.781,1.39401682]
[1772119734662,56.61348708,85.86,85.8,10.02581922]
[1772119734663,11.65162527,85.825,85.8,10.02581922]
[1772119735052,1.39258757,85.829,85.8,10.02581922]
[1772119735053,11.64971632,85.839,85.8,10.02581922]
[1772119735348,1.39258757,85.809,85.761,11.66031179]
[1772119735569,10.02581922,85.79,85.761,11.66031179]
[1772119735753,1.39258757,85.799,85.761,11.66031179]
[1772119735952,1.39258757,85.799,85.761,13.05432861]
[1772119736165,10.02581922,85.82,85.771,1.27330286]
[1772119736360,10.02581922,85.82,85.781,1.27330286]
[1772119736768,1.34823522,85.838,85.801,1.27330286]
[1772119737566,1.34823522,85.838,85.802,11.65473998]
[1772119737771,10.02581922,85.82,85.777,1.27330286]
[1772119737951,10.02581922,85.82,85.781,1.27330286]
[1772119738158,10.02581922,85.84,85.801,1.27330286]
[1772119738471,1.34823522,85.844,85.81,10.02581922]
[1772119738780,1.34823522,85.849,85.811,1.27330286]
[1772119739187,11.37405444,85.86,85.82,10.02581922]
[1772119739471,11.37405444,85.86,85.823,1.27330286]
[1772119739669,11.64700264,85.859,85.823,1.27330286]
[1772119739968,11.64700264,85.859,85.83,10.02581922]
[1772119740172,11.64700264,85.859,85.825,1.27330286]
[1772119740371,1.34823522,85.858,85.821,1.27330286]
[1772119740555,1.34823522,85.849,85.812,1.27330286]
[1772119740959,1.34823522,85.829,85.79,10.02581922]
[1772119741269,1.34823522,85.799,85.759,40.81204304]
[1772119741470,10.02581922,85.79,85.759,11.66058372]
[1772119741674,1.34823522,85.802,85.76,11.29912208]
[1772119741875,1.34823522,85.799,85.76,1.27330286]
[1772119742166,10.02581922,85.79,85.753,11.6613996]
[1772119742672,1.34823522,85.789,85.753,11.6613996]
[1772119742868,10.02581922,85.78,85.75,0.1]
[1772119743065,1.34823522,85.789,85.753,11.6613996]
[1772119743368,10.02581922,85.81,85.77,10.02581922]
[1772119743749,11.37405444,85.82,85.78,10.02581922]
[1772119743954,11.37405444,85.82,85.781,1.27330286]
[1772119744175,1.34823522,85.82,85.79,10.02581922]
[1772119744372,11.37405444,85.82,85.781,1.27330286]
[1772119744576,1.34823522,85.809,85.771,11.65895232]
[1772119744764,1.34823522,85.809,85.77,1.27330286]
[1772119744971,1.34823522,85.809,85.771,11.65895232]
[1772119745359,10.02581922,85.81,85.772,1.27330286]
[1772119745565,1.34823522,85.822,85.79,10.02581922]
[1772119745773,1.34823522,85.833,85.8,10.02581922]
[1772119746069,1.34823522,85.833,85.791,11.65623433]
[1772119746070,11.6495701,85.841,85.801,1.27330286]
[1772119746253,11.64903778,85.844,85.801,1.27330286]
[1772119746453,10.02581922,85.84,85.801,1.27330286]
[1772119746669,1.34823522,85.863,85.801,1.27330286]
[1772119746873,10.02581922,85.85,85.811,1.27330286]
[1772119747250,1.34823522,85.849,85.811,1.27330286]
[1772119747461,11.64564627,85.869,85.831,1.27330286]
[1772119747670,40.75976195,85.869,85.831,1.27330286]
[1772119747953,10.02581922,85.87,85.832,11.65066641]
[1772119748162,11.64469961,85.876,85.84,10.02581922]
[1772119748662,1.34823522,85.884,85.841,1.27330286]
[1772119748870,1.34823522,85.918,85.861,1.27330286]
[1772119749074,1.34823522,85.904,85.87,10.02581922]
[1772119749281,1.34823522,85.918,85.88,10.02581922]
[1772119749864,11.6391401,85.917,85.881,11.64401904]
[1772119750186,11.6391401,85.917,85.87,10.02581922]
[1772119750187,1.34823522,85.909,85.87,10.02581922]
[1772119750562,11.6391401,85.917,85.88,10.02581922]
[1772119750759,1.34823522,85.916,85.871,1.27330286]
[1772119751012,11.6391401,85.917,85.837,3.69383402]
[1772119751013,1.34823522,85.909,85.86,10.02581922]
[1772119751167,1.34823522,85.909,85.87,10.02581922]
[1772119751365,11.6391401,85.917,85.88,10.02581922]
[1772119751571,12.98737532,85.917,85.88,10.02581922]
[1772119751781,1.34823522,85.917,85.881,11.64401904]
[1772119752585,1.34823522,85.909,85.871,11.64537503]
[1772119752972,1.34823522,85.899,85.866,11.64592605]
[1772119753162,1.34823522,85.899,85.866,40.76105893]
[1772119753491,1.34823522,85.879,85.84,10.02581922]
[1772119753868,1.34823522,85.879,85.841,40.77305715]
[1772119754072,11.37405444,85.89,85.85,11.29912208]
[1772119754274,12.9911697,85.889,85.85,11.29912208]
[1772119754787,1.34823522,85.889,85.85,11.29912208]
[1772119755187,1.34823522,85.889,85.86,10.02581922]
[1772119755394,12.9911697,85.889,85.86,10.02581922]
[1772119755565,10.02581922,85.88,85.841,40.77305715]
[1772119755880,1.34823522,85.888,85.822,46.60781517]
[1772119755881,1.34823522,85.888,85.851,42.04161073]
[1772119756080,1.34823522,85.909,85.87,10.02581922]
[1772119756287,1.34823522,85.879,85.842,11.64930919]
[1772119756586,1.34823522,85.879,85.842,40.77258217]
[1772119757083,1.34823522,85.899,85.86,10.02581922]
[1772119757986,1.34823522,85.899,85.87,10.02581922]
[1772119758182,1.34823522,85.908,85.87,10.02581922]
[1772119758388,10.02581922,85.9,85.87,10.02581922]
[1772119758568,1.34823522,85.908,85.87,10.02581922]
[1772119759165,11.64035945,85.908,85.87,10.02581922]
[1772119759365,10.02581922,85.91,85.87,10.02581922]
[1772119759571,1.34823522,85.909,85.87,10.02581922]
[1772119759988,1.34823522,85.907,85.87,21.67128892]
[1772119760172,1.34823522,85.899,85.864,11.64624247]
[1772119760371,1.34823522,85.889,85.858,11.64703723]
[1772119760573,1.34823522,85.889,85.86,10.02581922]
[1772119761301,10.02581922,85.91,85.871,1.27330286]
[1772119761497,1.34823522,85.911,85.88,10.02581922]
[1772119761696,12.98822901,85.911,85.88,10.02581922]
[1772119761884,10.02581922,85.91,85.88,10.02581922]
[1772119762277,11.64022395,85.909,85.88,10.02581922]
[1772119762588,1.34823522,85.911,85.881,11.64401904]
[1772119763873,1.34823522,85.911,85.881,40.75406666]
[1772119764075,1.34823522,85.911,85.881,11.64401904]
[1772119764276,23.03998618,85.91,85.872,11.64523942]
[1772119764593,1.34823522,85.909,85.872,11.64523942]
[1772119765977,1.34823522,85.899,85.862,11.6465957]
[1772119766181,1.34534193,85.889,85.854,11.64766874]
[1772119767201,11.64307004,85.888,85.854,11.64766874]
[1772119767699,11.64307004,85.888,85.851,11.64808796]
[1772119767700,1.34534193,85.887,85.851,11.64808796]
[1772119768786,1.34534193,85.887,85.86,10.0516625]
[1772119768994,11.64233859,85.894,85.86,10.0516625]
[1772119769181,1.34534193,85.898,85.861,13.03564766]
[1772119769385,1.34534193,85.909,85.87,10.0516625]
[1772119770199,1.34534193,85.899,85.861,40.7635597]
[1772119770578,1.34534193,85.899,85.87,10.0516625]
[1772119771406,1.34534193,85.909,85.88,10.0516625]
[1772119772407,1.34534193,85.908,85.871,11.64537503]
[1772119772702,1.34534193,85.908,85.85,1.38891632]
[1772119772903,10.0516625,85.87,85.84,11.64958061]
[1772119773112,1.34534193,85.879,85.84,21.70124311]
[1772119773408,12.98976774,85.878,85.84,21.70124311]
[1772119773583,1.34534193,85.877,85.84,21.70124311]
[1772119773889,1.34534193,85.877,85.85,10.0516625]
[1772119774199,1.34534193,85.869,85.83,10.0516625]
[1772119774799,1.34534193,85.869,85.84,10.0516625]
[1772119775002,11.64442581,85.878,85.841,1.38891632]
[1772119775186,1.34534193,85.879,85.841,1.38891632]
[1772119775509,1.34534193,85.875,85.832,11.65066641]
[1772119775705,1.34534193,85.875,85.84,10.0516625]
[1772119776501,1.34534193,85.889,85.85,10.0516625]
[1772119776712,1.34534193,85.888,85.85,10.0516625]
[1772119777017,1.34534193,85.888,85.85,11.44057882]
[1772119777189,1.34534193,85.888,85.86,10.0516625]
[1772119777381,1.34534193,85.888,85.836,1.38891632]
[1772119777589,10.0516625,85.89,85.851,1.2988124]
[1772119777787,1.40393696,85.895,85.86,10.0516625]
[1772119778395,1.40393696,85.909,85.87,10.0516625]
[1772119778593,1.40393696,85.899,85.861,1.2988124]
[1772119778981,1.40393696,85.889,85.85,10.0516625]
[1772119779194,1.40393696,85.889,85.86,10.0516625]
[1772119779807,13.047007,85.888,85.861,11.64673134]
[1772119780010,1.40393696,85.887,85.861,11.64673134]
[1772119780690,1.40393696,85.908,85.87,10.0516625]
[1772119780893,13.04436059,85.908,85.88,10.0516625]
[1772119781102,1.40393696,85.907,85.87,10.0516625]
[1772119781288,1.40393696,85.899,85.861,11.64673134]
[1772119781607,1.40393696,85.889,85.853,11.64773634]
[1772119781912,1.40393696,85.887,85.853,11.64773634]
[1772119783488,1.40393696,85.887,85.86,10.0516625]
[1772119783887,1.40393696,85.885,85.853,11.64773634]
[1772119784196,1.40393696,85.885,85.85,10.0516625]
[1772119784391,1.40393696,85.885,85.84,10.0516625]
[1772119784704,1.40393696,85.885,85.85,10.0516625]
[1772119785009,1.40393696,85.885,85.86,10.0516625]
[1772119785211,11.64334117,85.886,85.86,11.3504749]
[1772119785408,11.64334117,85.886,85.86,10.0516625]
[1772119786088,1.40393696,85.886,85.86,10.0516625]
[1772119786810,11.64157906,85.899,85.862,1.2988124]
[1772119786811,1.40393696,85.898,85.862,1.2988124]
[1772119787003,11.64049495,85.907,85.871,1.2988124]
[1772119787200,11.64049495,85.907,85.88,10.0516625]
[1772119787411,1.40393696,85.906,85.88,10.0516625]
[1772119787789,1.40393696,85.906,85.871,1.2988124]
[1772119788087,11.63992155,85.912,85.881,11.64401904]
[1772119788293,13.04328108,85.916,85.89,10.0516625]
[1772119788792,1.40393696,85.915,85.88,10.0516625]
[1772119788987,1.40393696,85.909,85.88,10.0516625]
[1772119789517,1.40393696,85.909,85.87,10.0516625]
[1772119789692,1.40393696,85.909,85.87,21.69709575]
[1772119790406,1.40393696,85.907,85.87,10.0516625]
[1772119790604,1.40393696,85.917,85.89,10.0516625]
[1772119790910,1.40393696,85.936,85.9,10.0516625]
[1772119791407,1.40393696,85.936,85.9,11.3504749]
[1772119791588,1.40393696,85.936,85.91,10.0516625]
[1772119792190,1.40393696,85.936,85.89,10.0516625]
[1772119792411,1.40393696,85.934,85.9,10.0516625]
[1772119792794,0.2,85.94,85.91,10.0516625]
[1772119792998,0.2,85.94,85.92,10.0516625]
[1772119793710,1.40393696,85.938,85.91,10.0516625]
[1772119793913,1.40393696,85.938,85.9,10.0516625]
[1772119794410,1.40393696,85.936,85.9,10.0516625]
[1772119795516,1.40393696,85.936,85.901,11.64130801]
[1772119795694,1.40393696,85.936,85.9,10.0516625]
[1772119795893,1.40393696,85.929,85.89,10.0516625]
[1772119796199,1.40393696,85.929,85.9,10.0516625]
[1772119797014,1.42592331,85.927,85.89,21.69446142]
[1772119797818,1.42592331,85.927,85.89,10.0516625]
[1772119798999,1.42592331,85.925,85.89,10.0516625]
[1772119800322,1.42592331,85.909,85.844,1.30137622]
[1772119800527,1.42592331,85.899,85.861,1.30137622]
[1772119800695,1.42592331,85.886,85.84,10.0516625]
[1772119801025,1.42592331,85.884,85.85,10.0516625]
[1772119801796,1.42592331,85.884,85.841,1.30137622]
[1772119802015,1.42592331,85.879,85.85,10.0516625]
[1772119802209,13.06885779,85.889,85.86,10.0516625]
[1772119802410,11.64223414,85.895,85.87,10.0516625]
[1772119802612,1.42592331,85.898,85.87,10.0516625]
[1772119802799,1.42592331,85.908,85.88,10.0516625]
[1772119803001,1.42592331,85.916,85.88,10.0516625]
[1772119803415,1.42592331,85.929,85.9,10.0516625]
[1772119803600,1.42592331,85.927,85.89,10.0516625]
[1772119803997,1.42592331,85.927,85.9,10.0516625]
[1772119804198,10.2516625,85.94,85.9,10.0516625]
[1772119804199,1.42592331,85.937,85.9,10.0516625]
[1772119804399,1.42592331,85.929,85.89,10.0516625]
[1772119804794,1.42592331,85.929,85.872,40.75833798]
[1772119804795,1.42592331,85.929,85.9,10.0516625]
[1772119805000,1.42592331,85.919,85.88,10.0516625]
[1772119805519,1.42592331,85.919,85.815,5.36086188]
[1772119805520,1.42592331,85.909,85.87,10.0516625]
[1772119805715,1.42592331,85.923,85.88,10.0516625]
[1772119805925,1.42592331,85.927,85.881,1.30137622]
[1772119806098,1.42592331,85.936,85.9,10.0516625]
[1772119806824,11.63616053,85.939,85.91,10.0516625]
[1772119807022,1.42592331,85.929,85.85,1.58569936]
[1772119807201,1.42592331,85.919,85.88,10.0516625]
[1772119807602,1.42592331,85.919,85.89,10.0516625]
[1772119807802,1.42592331,85.929,85.89,10.0516625]
[1772119808015,1.42592331,85.919,85.87,10.0516625]
[1772119808209,1.42592331,85.909,85.87,10.0516625]
[1772119808416,87.27323502,85.937,85.86,10.0516625]
[1772119808417,1.42592331,85.899,85.86,10.0516625]
[1772119808615,1.42592331,85.899,85.847,11.6486307]
[1772119808616,11.47758581,85.92,85.88,10.0516625]
[1772119808921,1.42592331,85.919,85.881,1.30137622]
[1772119809221,1.42592331,85.889,85.854,11.64758697]
[1772119809519,1.42592331,85.889,85.85,21.6998845]
[1772119810021,1.42592331,85.912,85.88,10.0516625]
[1772119810921,10.0516625,85.91,85.88,10.0516625]
[1772119811101,1.42592331,85.907,85.852,1.30137622]
[1772119811302,1.42592331,85.899,85.852,1.30137622]
[1772119811622,1.42592331,85.889,85.86,10.0516625]
[1772119811821,1.42592331,85.899,85.86,10.0516625]
[1772119812520,1.42592331,85.899,85.851,12.94946418]
[1772119812521,11.64035945,85.908,85.871,1.30137622]
[1772119812702,42.16718139,85.908,85.871,1.30137622]
[1772119812903,1.42592331,85.899,85.852,1.30137622]
[1772119813119,1.42592331,85.897,85.86,10.0516625]
[1772119813315,1.42592331,85.897,85.861,11.64673134]
[1772119814124,1.42592331,85.908,85.88,10.0516625]
[1772119814332,0.2,85.94,85.89,10.0516625]
[1772119814333,1.42592331,85.929,85.89,10.0516625]
[1772119814622,10.0516625,85.93,85.865,1.30137622]
[1772119814623,1.42592331,85.919,85.865,1.30137622]
[1772119814917,11.63741235,85.93,85.9,10.0516625]
[1772119815118,11.63741235,85.93,85.901,11.64130801]
[1772119815320,11.63670466,85.935,85.902,1.30137622]
[1772119815532,11.83610676,85.94,85.91,10.0516625]
[1772119815703,1.42592331,85.939,85.893,11.6423732]
[1772119815901,10.0516625,85.93,85.882,1.30137622]
[1772119816115,1.42592331,85.929,85.89,10.0516625]
[1772119816321,1.42592331,85.929,85.89,11.35303872]
[1772119816605,1.42592331,85.939,85.891,1.30137622]
[1772119817124,1.42592331,85.929,85.891,1.30137622]
[1772119817607,11.63765012,85.928,85.892,11.64252782]
[1772119817805,11.63765012,85.928,85.9,10.0516625]
[1772119818124,11.63765012,85.928,85.892,11.64252782]
[1772119818125,0.2,85.94,85.92,10.0516625]
[1772119818621,1.42592331,85.939,85.91,10.0516625]
[1772119819022,10.0516625,85.93,85.892,11.64252782]
[1772119819203,1.42592331,85.919,85.88,10.0516625]
[1772119819403,1.42592331,85.919,85.881,1.30137622]
[1772119819618,1.42592331,85.909,85.87,22.99847594]
[1772119819820,1.42592331,85.907,85.87,21.69709972]
[1772119820019,1.42592331,85.9,85.861,1.30137622]
[1772119820204,1.42592331,85.9,85.87,10.0516625]
[1772119820711,1.42592331,85.9,85.8,10.0516625]
[1772119820712,11.47758581,85.89,85.852,11.64790631]
[1772119820915,1.42592331,85.89,85.86,10.0516625]
[1772119821410,1.42592331,85.89,72.43,0.2809409]
[1772119821411,1.42592331,85.879,85.84,10.0516625]
[1772119821818,1.42592331,85.879,85.85,10.0516625]
[1772119822015,10.0516625,85.89,85.85,10.0516625]
[1772119822016,11.64280002,85.89,85.851,1.30137622]
[1772119822206,50.80145984,85.89,85.851,1.30137622]
[1772119822510,1.42592331,85.889,85.851,1.30137622]
[1772119822704,46.55422568,85.922,85.841,40.77305715]
[1772119822705,11.64143651,85.901,85.87,10.0516625]
[1772119822934,1.42592331,85.9,85.87,10.0516625]
[1772119823315,11.64022395,85.909,85.871,1.30137622]
[1772119823514,1.42592331,85.91,85.88,10.0525166]
[1772119823706,13.06614726,85.909,85.872,11.64523942]
[1772119824516,1.42592331,85.908,85.88,10.0525166]
[1772119824725,1.42592331,85.908,85.87,10.0525166]
[1772119825035,1.42592331,85.919,85.89,10.0525166]
[1772119825210,1.42592331,85.933,85.9,10.0525166]
[1772119825411,10.2525166,85.94,85.91,10.0525166]
[1772119825412,0.2,85.94,85.91,10.0525166]
[1772119825623,0.2,85.94,85.92,10.0525166]
[1772119825826,0.2,85.94,85.93,10.0525166]
[1772119826117,0.2,85.94,85.921,12.93997446]
[1772119826322,0.2,85.94,85.93,10.0525166]
[1772119826523,1.42592331,85.956,85.93,10.0525166]
[1772119826832,13.05984478,85.956,85.93,10.0525166]
[1772119827040,1.42592331,85.956,85.93,10.0525166]
[1772119827723,1.36236466,85.969,85.94,10.0525166]
[1772119827912,1.36236466,85.959,85.922,11.63846279]
[1772119828226,1.36236466,85.967,85.93,10.0525166]
[1772119828435,1.36236466,85.939,85.89,10.0525166]
[1772119828610,1.36236466,85.929,85.89,10.0525166]
[1772119828810,1.36236466,85.909,85.867,11.64591752]
[1772119829034,1.36236466,85.909,85.87,10.0525166]
[1772119829530,10.0525166,85.92,85.881,1.31038023]
[1772119829730,11.6352128,85.946,85.911,11.63995297]
[1772119830236,1.36236466,85.945,85.901,1.31038023]
[1772119830444,1.36236466,85.939,85.881,1.31038023]
[1772119830626,1.36236466,85.939,85.89,10.0525166]
[1772119830936,1.36236466,85.919,85.862,1.31038023]
[1772119831226,1.36236466,85.919,85.88,10.0525166]
[1772119831831,133.80494728,85.946,85.861,11.64673134]
[1772119831832,1.36236466,85.939,85.9,10.0525166]
[1772119832021,1.36236466,85.939,85.891,12.95298266]
[1772119832215,1.36236466,85.939,85.9,10.0525166]
[1772119832619,1.36236466,85.929,85.89,10.0525166]
[1772119833227,1.36236466,85.929,85.891,11.64266337]
[1772119833424,1.36236466,85.929,85.89,10.0525166]
[1772119833823,1.36236466,85.927,85.89,10.0525166]
[1772119834239,1.36236466,85.962,85.91,10.0525166]
[1772119834536,1.36236466,85.958,85.92,10.0525166]
[1772119835033,11.63353141,85.959,85.93,10.0525166]
[1772119835932,1.36236466,85.967,85.93,10.0525166]
[1772119836241,1.36236466,85.959,85.92,10.0525166]
[1772119836432,40.71282337,85.968,85.862,1.31038023]
[1772119836433,1.36236466,85.956,85.862,1.31038023]
[1772119836616,1.36236466,85.949,85.9,10.0525166]
[1772119836820,1.36236466,85.956,85.91,11.36289683]
[1772119837019,1.36236466,85.956,85.92,10.0525166]
[1772119838035,11.63399453,85.955,85.921,1.40761325]
[1772119838239,1.34176093,85.97,85.93,1.40761325]
[1772119838437,1.34176093,85.959,85.894,1.40761325]
[1772119838628,1.34176093,85.959,85.88,11.64415463]
[1772119838629,1.34176093,85.959,85.91,10.0525166]
[1772119838831,1.34176093,85.949,85.906,1.40761325]
[1772119839138,1.34176093,85.949,85.91,10.0525166]
[1772119839347,1.34176093,85.949,85.906,1.40761325]
[1772119839348,1.34176093,85.949,85.92,10.0525166]
[1772119839532,1.34176093,85.962,85.92,10.0525166]
[1772119839845,1.34176093,85.962,85.93,10.0525166]
[1772119840041,1.34176093,85.957,85.92,10.0525166]
[1772119840540,46.50483309,86.013,85.895,0.28432314]
[1772119840541,11.63298165,85.963,85.94,10.0525166]
[1772119840744,11.63298165,85.963,85.93,10.0525166]
[1772119840946,40.71526123,85.963,85.93,10.0525166]
[1772119841125,42.05702216,85.963,85.93,10.0525166]
[1772119841324,1.34176093,85.962,85.93,10.0525166]
[1772119841529,1.34176093,85.962,85.921,11.63859824]
[1772119841933,1.34176093,85.962,85.93,10.0525166]
[1772119842249,1.34176093,85.959,85.92,10.0525166]
[1772119842539,1.34176093,85.959,85.912,11.63981748]
[1772119842540,1.34176093,85.959,85.93,10.0525166]
[1772119843349,1.34176093,85.959,85.94,10.0525166]
[1772119843851,58.14478758,85.993,85.912,40.73936119]
[1772119843852,1.34176093,85.986,85.95,10.0525166]
[1772119844347,10.2525166,85.99,85.89,10.0525166]
[1772119844348,1.34176093,85.959,85.89,10.0525166]
[1772119844555,1.34176093,85.939,85.891,1.40761325]
[1772119844845,1.34176093,85.929,85.891,1.40761325]
[1772119845146,1.34176093,85.929,85.9,10.0525166]
[1772119845453,1.34176093,85.929,85.891,1.40761325]
[1772119846346,11.63886916,85.919,85.89,10.0525166]
[1772119846532,1.34176093,85.929,85.9,10.0525166]
[1772119846733,11.63704077,85.933,85.901,1.40761325]
[1772119846933,1.34176093,85.929,85.89,10.0525166]
[1772119847133,1.34176093,85.919,85.884,1.40761325]
[1772119848146,1.34176093,85.919,85.88,10.0525166]
[1772119848442,1.34176093,85.917,85.881,11.64401904]
[1772119848840,1.34176093,85.917,85.89,10.0525166]
[1772119849454,12.97792146,85.939,85.901,1.40761325]
[1772119849748,46.51961057,85.986,85.881,40.75406666]
[1772119849749,11.63484956,85.949,85.92,10.0525166]
[1772119850444,11.63484956,85.949,85.871,46.58115588]
[1772119850445,1.34176093,85.948,85.9,11.46012985]
[1772119850748,1.34176093,85.948,85.91,10.0525166]
[1772119850949,3.69383402,85.964,85.899,40.74549718]
[1772119850950,1.34176093,85.996,85.941,1.40761325]
[1772119851152,0.2,86.0,85.98,10.0525166]
[1772119851647,0.2,86.02,85.981,1.40761325]
[1772119851851,0.2,86.02,86.0,10.0525166]
[1772119852029,0.2,86.02,85.99,11.46012985]
[1772119852231,0.2,86.02,85.957,3.69383402]
[1772119852232,0.2,86.03,86.011,11.62641987]
[1772119852535,12.96574819,86.029,86.0,10.0525166]
[1772119852738,12.96574819,86.029,85.993,11.62883779]
[1772119852739,0.2,86.03,86.01,11.46012985]
[1772119853035,0.2,86.03,85.993,11.62883779]
[1772119853036,1.34176093,86.075,86.026,0.28432314]
[1772119853234,1.34176093,86.099,86.07,10.0525166]
[1772119853450,1.34176093,86.128,86.09,10.0525166]
[1772119853641,1.34176093,86.109,86.06,10.0525166]
[1772119853833,1.34176093,86.099,86.07,10.0525166]
[1772119854033,1.34176093,86.124,86.09,10.0525166]
[1772119854234,1.34176093,86.122,86.08,10.0525166]
[1772119854431,1.34176093,86.099,86.041,11.62236608]
[1772119854631,1.34176093,86.091,86.05,10.0525166]
[1772119854839,1.34176093,86.089,86.05,10.0525166]
[1772119855032,1.34176093,86.079,86.04,10.0525166]
[1772119855531,1.34176093,86.069,86.011,1.40761325]
[1772119855736,1.34176093,86.059,86.02,10.0525166]
[1772119855931,1.34176093,86.059,86.03,10.0525166]
[1772119856235,1.39183407,86.081,86.05,10.0525166]
[1772119856546,1.39183407,86.128,86.07,10.0525166]
[1772119856855,1.39183407,86.099,86.07,10.0525166]
[1772119858047,1.39183407,86.099,86.06,10.0525166]
[1772119858250,1.39183407,86.097,86.06,10.0525166]
[1772119858440,1.39183407,86.097,86.061,11.61966512]
[1772119858641,1.39183407,86.097,86.06,10.0525166]
[1772119859159,1.39183407,86.097,86.07,10.0525166]
[1772119859337,1.39183407,86.114,86.08,10.0525166]
[1772119859538,1.39183407,86.109,86.07,10.0525166]
[1772119860337,1.39183407,86.107,86.07,10.0525166]
[1772119860747,1.39183407,86.089,86.039,1.41135406]
[1772119860952,40.6466298,86.108,86.03,10.0525166]
[1772119860953,1.39183407,86.069,86.03,10.0525166]
[1772119861256,10.0525166,86.04,86.0,10.0525166]
[1772119861561,10.0525166,86.04,85.983,40.70572089]
[1772119861562,10.0525166,86.03,85.99,10.0525166]
[1772119861770,1.39183407,86.029,85.99,10.0525166]
[1772119861943,1.39183407,86.029,86.0,10.0525166]
[1772119862264,10.0525166,86.04,86.0,10.0525166]
[1772119862451,1.39183407,86.019,85.98,10.0525166]
[1772119862657,1.39183407,86.019,85.97,10.0525166]
[1772119862868,1.39183407,86.009,85.97,10.0525166]
[1772119863042,1.39183407,86.039,86.0,10.0525166]
[1772119863361,1.39183407,86.051,86.03,10.0525166]
[1772119863604,1.39183407,86.051,86.02,10.0525166]
[1772119863753,1.39183407,86.049,86.01,10.0525166]
[1772119864141,1.39183407,86.046,85.976,1.4141309]
[1772119864338,1.39183407,86.009,85.97,10.0525166]
[1772119864543,1.39183407,85.999,85.96,10.0525166]
[1772119864756,10.0525166,86.01,85.97,10.0525166]
[1772119865064,1.39183407,85.999,85.96,10.0525166]
[1772119865362,1.39183407,85.999,85.95,10.0525166]
[1772119865664,10.0525166,85.99,85.95,10.0525166]
[1772119865844,1.39183407,85.999,85.96,10.0525166]
[1772119866463,1.39183407,85.997,85.96,10.0525166]
[1772119866759,1.39183407,85.997,85.96,21.68576124]